bitfinex/quotes_SOLUSD_20260305
["timestamp","ask_amount","ask_price","bid_price","bid_amount"]
[1772706999781,8.63771565,92.58,92.541,37.82107389]
[1772706999991,10.80126249,92.582,92.542,0.72732334]
[1772707000187,4.82477569,92.643,92.542,0.72732334]
[1772707000393,8.63771565,92.62,92.542,0.72732334]
[1772707000601,8.63771565,92.61,92.542,0.72732334]
[1772707000800,8.63771565,92.64,92.545,0.72732334]
[1772707001099,8.63771565,92.63,92.546,0.72732334]
[1772707001286,37.77535535,92.653,92.546,0.72732334]
[1772707001287,8.63771565,92.62,92.547,0.72732334]
[1772707001596,37.77535535,92.653,92.547,0.72732334]
[1772707001597,8.63771565,92.61,92.547,0.72732334]
[1772707001776,8.63771565,92.63,92.547,0.72732334]
[1772707001975,10.7957551,92.629,92.549,0.72732334]
[1772707003188,8.63771565,92.62,92.549,0.72732334]
[1772707003501,8.63771565,92.61,92.549,0.72732334]
[1772707003703,8.63771565,92.62,92.549,0.72732334]
[1772707004477,4.03063893,92.62,92.551,0.72732334]
[1772707005893,41.80721744,92.65,92.551,0.72732334]
[1772707005894,4.03063893,92.61,92.551,0.72732334]
[1772707006104,4.03063893,92.63,92.551,0.72732334]
[1772707006791,4.03063893,92.6,92.553,0.72732334]
[1772707007185,4.03063893,92.61,92.553,0.72732334]
[1772707007786,10.79808657,92.609,92.555,0.72732334]
[1772707008085,4.03063893,92.63,92.555,0.72732334]
[1772707008303,4.03063893,92.64,92.558,0.72732334]
[1772707009004,4.03063893,92.63,92.558,0.72732334]
[1772707009201,4.03063893,92.62,92.558,0.72732334]
[1772707010085,10.79692071,92.619,92.559,37.81371881]
[1772707010389,10.79692071,92.619,92.56,0.72732334]
[1772707012398,37.7892225,92.619,92.562,0.72732334]
[1772707013129,10.79692071,92.619,92.562,0.72732334]
[1772707014012,8.63768222,92.61,92.562,0.72732334]
[1772707014197,8.63768222,92.6,92.562,0.72732334]
[1772707014513,10.79925269,92.599,92.564,0.72732334]
[1772707014807,10.79925269,92.599,92.515,86.4717681]
[1772707014808,8.63768222,92.6,92.553,0.72732334]
[1772707015704,8.63768222,92.59,92.553,0.72732334]
[1772707016109,221.29147864,92.638,92.553,0.72732334]
[1772707016313,10.80041905,92.589,92.554,11.53182665]
[1772707017402,10.80041905,92.589,92.519,3.69383402]
[1772707017716,10.80041905,92.589,92.521,0.72732334]
[1772707017717,8.63768222,92.58,92.521,0.72732334]
[1772707018094,53.9938034,92.604,92.521,0.72732334]
[1772707018095,10.79936931,92.598,92.521,0.72732334]
[1772707019520,10.79936931,92.598,92.523,0.72732334]
[1772707019816,8.63768222,92.59,92.523,0.72732334]
[1772707020016,8.63768222,92.57,92.523,0.72732334]
[1772707020313,8.63768222,92.56,92.523,0.72732334]
[1772707020499,8.63768222,92.58,92.523,0.72732334]
[1772707020907,10.79936931,92.598,92.523,0.72732334]
[1772707021126,8.63768222,92.59,92.523,0.72732334]
[1772707021330,8.63768222,92.57,92.523,0.72732334]
[1772707021624,8.63768222,92.57,92.525,0.72732334]
[1772707021827,10.80275254,92.569,92.525,0.72732334]
[1772707022198,8.63768222,92.56,92.525,0.72732334]
[1772707022701,10.80275254,92.569,92.525,0.72732334]
[1772707023020,8.63768222,92.56,92.525,0.72732334]
[1772707023600,10.80391966,92.559,92.526,10.80777295]
[1772707025024,10.80170234,92.578,92.527,0.72732334]
[1772707025424,8.63768222,92.58,92.527,0.72732334]
[1772707026005,19.4392203,92.58,92.529,0.72732334]
[1772707026713,8.63768222,92.6,92.529,0.72732334]
[1772707027016,8.63768222,92.59,92.529,0.62732334]
[1772707027723,0.0563116,92.599,92.529,0.62732334]
[1772707027924,8.63768222,92.59,92.529,0.62732334]
[1772707028218,10.80041905,92.589,92.53,37.82557007]
[1772707028626,0.05565781,92.588,92.53,37.82557007]
[1772707028821,0.05565781,92.588,92.531,0.67732334]
[1772707030509,0.05565781,92.588,92.512,43.23732162]
[1772707030510,0.05501314,92.579,92.533,0.67732334]
[1772707032613,0.05501314,92.579,92.535,0.67732334]
[1772707033915,4.03402141,92.57,92.534,10.80683856]
[1772707034128,0.05407657,92.58,92.535,0.67732334]
[1772707034328,4.08809798,92.58,92.535,0.67732334]
[1772707034630,4.03402141,92.57,92.535,0.67732334]
[1772707034934,10.80204994,92.576,92.537,0.67732334]
[1772707035112,10.80041905,92.589,92.537,0.67732334]
[1772707035312,4.03402141,92.58,92.537,0.67732334]
[1772707036018,0.0534659,92.588,92.537,0.67732334]
[1772707037619,4.03402141,92.58,92.539,0.67732334]
[1772707038331,0.0534659,92.588,92.539,0.67732334]
[1772707039333,4.03402141,92.58,92.539,0.67732334]
[1772707039635,0.0534659,92.588,92.54,37.82148259]
[1772707039809,0.0534659,92.588,92.541,0.67732334]
[1772707040217,0.05200044,92.608,92.541,0.67732334]
[1772707040431,0.05200044,92.599,92.541,0.67732334]
[1772707041229,0.05171384,92.608,92.541,0.67732334]
[1772707041638,0.05171384,92.608,92.543,0.67732334]
[1772707042013,4.03226707,92.6,92.543,0.67732334]
[1772707042213,0.05142977,92.599,92.543,0.67732334]
[1772707043115,0.05115248,92.608,92.543,0.67732334]
[1772707044844,4.03226707,92.6,92.545,0.67732334]
[1772707045023,0.05059793,92.601,92.545,0.67732334]
[1772707046923,37.79330301,92.609,92.547,0.67732334]
[1772707046924,0.05006918,92.599,92.547,0.67732334]
[1772707047530,0.04980625,92.599,92.547,0.67732334]
[1772707048039,0.04954611,92.589,92.547,0.67732334]
[1772707049333,0.04954611,92.589,92.518,86.46913316]
[1772707049334,0.04954611,92.589,92.549,0.68351322]
[1772707049724,0.04903448,92.579,92.549,0.68351322]
[1772707049932,0.04903448,92.579,92.548,10.80520378]
[1772707050134,0.04903448,92.579,92.48,43.25228707]
[1772707050135,0.66493654,92.595,92.51,10.8096422]
[1772707050335,0.66493654,92.561,92.51,10.8096422]
[1772707050542,3.69383402,92.596,92.51,37.8337477]
[1772707050543,0.66493654,92.559,92.51,37.8337477]
[1772707051024,4.03226707,92.55,92.51,37.8337477]
[1772707051227,0.66493654,92.549,92.51,37.8337477]
[1772707051428,0.66493654,92.547,92.51,37.8337477]
[1772707052128,4.03226707,92.54,92.51,37.8337477]
[1772707052645,0.66493654,92.539,92.51,37.14986001]
[1772707052828,8.06453414,92.52,92.44,0.2]
[1772707053029,0.28432314,92.534,92.49,1e-08]
[1772707053343,27.01311923,92.548,92.491,10.81186277]
[1772707053344,4.03226707,92.51,92.491,10.81186277]
[1772707053730,4.03226707,92.5,92.49,1e-08]
[1772707053950,4.03226707,92.5,92.49,10.81191234]
[1772707054138,4.03226707,92.51,92.49,10.81191234]
[1772707054543,4.03226707,92.51,92.49,1e-08]
[1772707060949,4.03226707,92.5,92.49,1e-08]
[1772707065428,10.81092768,92.499,92.49,1e-08]
[1772707068353,37.83824689,92.499,92.46,10.81542852]
[1772707068541,4.03226707,92.48,92.46,10.81542852]
[1772707068749,4.03226707,92.48,92.455,10.81597701]
[1772707068938,4.03226707,92.48,92.436,0.70227106]
[1772707069254,4.03226707,92.47,92.451,10.81654065]
[1772707069440,27.02115262,92.521,92.452,0.70227106]
[1772707069640,4.03226707,92.51,92.452,0.70227106]
[1772707069841,10.80975905,92.509,92.454,0.70227106]
[1772707071061,27.02115262,92.521,92.454,0.70227106]
[1772707071354,4.03226707,92.52,92.454,0.70227106]
[1772707071936,4.03226707,92.51,92.456,0.70227106]
[1772707073060,10.80975905,92.509,92.458,0.70227106]
[1772707073442,4.03226707,92.51,92.458,0.70227106]
[1772707074343,4.03226707,92.5,92.458,0.70227106]
[1772707074563,4.03226707,92.51,92.458,0.70227106]
[1772707075371,10.80975905,92.509,92.46,0.70227106]
[1772707076746,37.83415667,92.509,92.46,0.70227106]
[1772707077466,37.83415667,92.509,92.461,10.8153708]
[1772707077664,4.03226707,92.5,92.462,0.70227106]
[1772707077870,4.03226707,92.5,92.461,10.8153708]
[1772707078169,4.03226707,92.5,92.462,0.70227106]
[1772707078343,4.03226707,92.49,92.462,0.70227106]
[1772707078547,4.03226707,92.49,92.461,10.8153708]
[1772707078848,4.03226707,92.47,92.441,0.70227106]
[1772707079052,4.03226707,92.47,92.44,0.2]
[1772707079053,4.03226707,92.49,92.452,0.70227106]
[1772707079272,4.03226707,92.5,92.452,0.70227106]
[1772707080081,4.03226707,92.5,92.454,0.70227106]
[1772707080281,4.03226707,92.49,92.454,0.70227106]
[1772707080875,4.03226707,92.49,92.44,0.2]
[1772707080876,4.03226707,92.48,92.44,0.2]
[1772707081184,4.03226707,92.46,92.44,0.2]
[1772707081548,4.03226707,92.45,92.44,1e-08]
[1772707081759,4.03226707,92.46,92.44,1e-08]
[1772707082065,10.81510653,92.464,92.44,1e-08]
[1772707082273,10.81510653,92.464,92.44,0.70227107]
[1772707082474,4.03226707,92.46,92.44,0.70227107]
[1772707083350,10.81510653,92.464,92.44,0.70227107]
[1772707083564,4.03226707,92.46,92.44,0.70227107]
[1772707083769,4.03226707,92.45,92.44,1e-08]
[1772707084075,4.03226707,92.46,92.44,1e-08]
[1772707084753,4.03226707,92.45,92.44,1e-08]
[1772707086063,10.81677465,92.449,92.44,1e-08]
[1772707086466,37.85871128,92.449,92.43,1e-08]
[1772707086669,4.03226707,92.44,92.43,1e-08]
[1772707086849,37.85871128,92.449,92.43,1e-08]
[1772707087051,4.03226707,92.45,92.43,0.70227107]
[1772707087251,4.03226707,92.46,92.43,0.70227107]
[1772707087464,4.03226707,92.48,92.431,0.70227106]
[1772707087665,10.8126134,92.485,92.431,0.70227106]
[1772707088073,10.8126134,92.485,92.433,0.70227106]
[1772707089049,10.8126134,92.485,92.435,0.70227106]
[1772707089771,6.69653119,92.488,92.435,0.70227106]
[1772707090962,6.69653119,92.488,92.439,37.86280681]
[1772707091173,6.69653119,92.488,92.443,0.70227106]
[1772707091560,27.0201249,92.524,92.444,0.70227106]
[1772707091771,8.65846935,92.52,92.444,0.70227106]
[1772707093787,10.80859066,92.519,92.449,0.70227106]
[1772707094074,27.01613418,92.538,92.452,0.70227106]
[1772707095464,8.65846935,92.54,92.452,0.70227106]
[1772707095863,8.65846935,92.55,92.457,0.9865942]
[1772707096068,8.65846935,92.55,92.46,0.70227106]
[1772707096461,0.02005618,92.549,92.46,0.70227106]
[1772707097479,10.80345278,92.563,92.463,0.70227106]
[1772707097662,6.71367113,92.57,92.467,0.84443263]
[1772707097863,10.80158567,92.579,92.483,5.52704675]
[1772707098063,10.80158567,92.579,92.484,0.70227106]
[1772707098367,0.02033853,92.569,92.484,0.70227106]
[1772707099877,0.02117123,92.568,92.489,0.70227106]
[1772707100195,0.02117123,92.568,92.49,0.70227106]
[1772707100996,0.0214401,92.567,92.49,0.70227106]
[1772707101193,0.0214401,92.539,92.49,0.70227106]
[1772707101363,0.0214401,92.529,92.49,0.70227106]
[1772707101557,0.28432314,92.554,92.432,37.86567422]
[1772707101558,8.64557759,92.5,92.432,37.86567422]
[1772707101783,10.81092768,92.499,92.411,43.28449583]
[1772707101966,10.81092768,92.499,92.435,1.15]
[1772707102363,11.51840706,92.499,92.435,1.15]
[1772707102664,11.51840706,92.499,92.43,1e-08]
[1772707102665,0.70747938,92.489,92.43,1e-08]
[1772707103684,0.70747938,92.479,92.43,1e-08]
[1772707103894,0.70747938,92.477,92.43,1e-08]
[1772707104305,0.70747938,92.469,92.43,1e-08]
[1772707104594,37.84683924,92.478,92.4,0.67902576]
[1772707104595,0.70747938,92.439,92.4,0.67902576]
[1772707104767,9.35305697,92.43,92.4,0.67902576]
[1772707104973,0.70747938,92.429,92.395,10.82309648]
[1772707106273,0.70747938,92.428,92.395,10.82309648]
[1772707106478,0.70747938,92.428,92.396,0.67902576]
[1772707107871,0.71027287,92.459,92.396,0.67902576]
[1772707108268,0.71027287,92.457,92.398,0.66378662]
[1772707108473,10.81572173,92.458,92.398,0.66378662]
[1772707108474,0.71027287,92.449,92.398,0.66378662]
[1772707108670,0.71027287,92.439,92.398,0.66378662]
[1772707108869,0.71027287,92.439,92.397,10.82286221]
[1772707109798,10.81923226,92.428,92.397,10.82286221]
[1772707110290,0.71027287,92.428,92.398,0.66378662]
[1772707111074,0.71027287,92.432,92.398,0.66378662]
[1772707111393,10.81867139,92.433,92.398,0.66378662]
[1772707111785,0.71027287,92.429,92.397,10.82286221]
[1772707112383,10.81923226,92.428,92.397,10.82286221]
[1772707112891,10.81923226,92.428,92.394,2.20327169]
[1772707112892,37.86731292,92.428,92.395,0.66378662]
[1772707113103,38.57758579,92.428,92.395,11.4868831]
[1772707113300,11.52950513,92.428,92.396,0.66378662]
[1772707113800,10.81923226,92.428,92.396,0.66378662]
[1772707114800,8.64557759,92.43,92.396,0.66378662]
[1772707115180,8.64557759,92.43,92.397,10.82286221]
[1772707115383,8.64557759,92.44,92.398,0.66378662]
[1772707115696,0.71027287,92.438,92.398,0.66378662]
[1772707117499,10.81817886,92.437,92.399,10.82262795]
[1772707117680,0.71027287,92.436,92.4,0.66378662]
[1772707118512,8.64557759,92.43,92.4,0.66378662]
[1772707118689,0.71027287,92.429,92.394,2.20327169]
[1772707118888,0.71027287,92.429,92.394,2.86705831]
[1772707119204,0.71027287,92.419,92.394,2.20327169]
[1772707119391,8.64557759,92.43,92.395,10.82309648]
[1772707119595,0.71027287,92.429,92.395,10.82309648]
[1772707120197,0.71027287,92.427,92.395,10.82309648]
[1772707120391,0.71027287,92.444,92.396,0.66378662]
[1772707120591,8.64557759,92.44,92.396,0.66378662]
[1772707121119,0.71027287,92.439,92.396,0.66378662]
[1772707121291,8.64557759,92.43,92.396,0.66378662]
[1772707121608,8.64557759,92.43,92.395,37.88083769]
[1772707121609,0.71027287,92.419,92.395,10.82309648]
[1772707121805,0.71027287,92.427,92.395,11.4868831]
[1772707122106,0.71027287,92.427,92.396,0.66378662]
[1772707122315,10.81946638,92.426,92.397,10.82286221]
[1772707123307,0.71027287,92.427,92.398,0.66378662]
[1772707123517,8.64557759,92.44,92.398,0.66378662]
[1772707124216,10.81759373,92.442,92.398,0.66378662]
[1772707124716,0.71027287,92.463,92.4,3.69383402]
[1772707124887,0.71027287,92.489,92.402,0.66378662]
[1772707125491,0.71027287,92.489,92.401,0.28432314]
[1772707125492,0.71027287,92.517,92.406,3.69383402]
[1772707125795,0.71027287,92.517,92.414,0.66378662]
[1772707126384,0.71027287,92.517,92.413,0.28432314]
[1772707126385,0.71027287,92.517,92.417,0.66378662]
[1772707126790,0.71027287,92.517,92.418,0.28432314]
[1772707127008,10.80800657,92.524,92.419,0.66378662]
[1772707127515,10.80800657,92.524,92.426,0.66378662]
[1772707127516,0.71027287,92.523,92.426,0.66378662]
[1772707128286,0.71027287,92.523,92.427,0.80594819]
[1772707128499,0.71027287,92.523,92.428,0.66378662]
[1772707128694,0.71027287,92.523,92.43,0.67278539]
[1772707129218,10.80753417,92.529,92.436,0.67278539]
[1772707129400,0.71448023,92.526,92.441,0.67278539]
[1772707129601,0.71448023,92.526,92.442,0.67278539]
[1772707129811,0.71448023,92.526,92.443,0.28432314]
[1772707130014,0.71448023,92.519,92.444,0.67278539]
[1772707130519,37.82679649,92.527,92.444,0.67278539]
[1772707130520,0.71448023,92.509,92.444,0.67278539]
[1772707130905,0.28432314,92.519,92.444,0.67278539]
[1772707130906,0.71448023,92.499,92.444,0.67278539]
[1772707131114,0.71448023,92.479,92.444,0.67278539]
[1772707131504,0.71448023,92.477,92.445,10.81724268]
[1772707133802,0.71448023,92.475,92.445,10.81724268]
[1772707134302,10.8136165,92.476,92.446,0.67278539]
[1772707134502,11.52809673,92.476,92.446,0.67278539]
[1772707134819,0.71448023,92.475,92.44,10.81782778]
[1772707135905,0.71448023,92.485,92.441,0.67278539]
[1772707136103,0.71448023,92.479,92.441,0.67278539]
[1772707137411,0.71448023,92.47,92.441,0.67278539]
[1772707137623,0.71448023,92.469,92.44,10.81782778]
[1772707137801,0.71448023,92.469,92.439,4.29972101]
[1772707138007,0.71448023,92.467,92.439,4.29972101]
[1772707138430,43.22240335,92.545,92.441,0.67278539]
[1772707138606,0.71448023,92.515,92.444,0.67278539]
[1772707139421,0.71448023,92.509,92.444,0.67278539]
[1772707140018,0.71448023,92.507,92.446,0.67278539]
[1772707142301,10.81010961,92.506,92.448,0.67278539]
[1772707143926,10.81010961,92.506,92.45,0.67278539]
[1772707144143,0.71448023,92.499,92.45,0.67278539]
[1772707146817,37.83538364,92.506,92.452,0.67278539]
[1772707147323,38.54986387,92.506,92.452,0.67278539]
[1772707147515,0.71448023,92.505,92.452,0.67278539]
[1772707147720,0.71448023,92.499,92.452,0.67278539]
[1772707149018,11.52423928,92.509,92.454,0.67278539]
[1772707149535,0.71448023,92.508,92.454,0.67278539]
[1772707149917,0.71448023,92.499,92.454,0.67278539]
[1772707150426,0.71448023,92.489,92.453,10.81630666]
[1772707151120,0.71448023,92.487,92.445,10.81724268]
[1772707151315,0.71448023,92.479,92.445,10.81724268]
[1772707151622,0.71448023,92.479,92.439,4.29972101]
[1772707151623,0.71448023,92.479,92.441,10.81767671]
[1772707151934,38.55722739,92.488,92.442,0.67278539]
[1772707152119,0.71448023,92.487,92.442,0.67278539]
[1772707153836,0.28432314,92.505,92.439,4.29972101]
[1772707153837,0.71448023,92.479,92.443,11.4902621]
[1772707154220,37.8435655,92.486,92.443,11.4902621]
[1772707154221,37.8435655,92.486,92.444,0.67278539]
[1772707154538,0.71448023,92.485,92.444,0.67278539]
[1772707155619,10.81192976,92.491,92.444,0.67278539]
[1772707155917,0.71448023,92.49,92.444,0.67278539]
[1772707156725,0.71448023,92.488,92.446,0.67278539]
[1772707157723,0.71448023,92.479,92.446,0.67278539]
[1772707158448,0.71448023,92.517,92.447,0.67278539]
[1772707158621,0.71448023,92.517,92.437,46.96619955]
[1772707158622,0.71448023,92.515,92.449,0.67278539]
[1772707159141,0.72952022,92.489,92.449,0.67278539]
[1772707159442,0.72952022,92.479,92.449,0.67278539]
[1772707159826,0.72952022,92.479,92.448,10.81689165]
[1772707160522,0.72952022,92.512,92.437,0.67946734]
[1772707160730,0.72952022,92.487,92.439,0.67946734]
[1772707161945,0.72952022,92.485,92.441,0.67946734]
[1772707162637,10.81244728,92.486,92.441,0.67946734]
[1772707163036,0.72952022,92.485,92.441,0.67946734]
[1772707163227,0.72952022,92.489,92.441,0.67946734]
[1772707163841,0.72952022,92.489,92.443,0.67946734]
[1772707164051,0.72952022,92.487,92.443,0.67946734]
[1772707166041,0.72952022,92.487,92.442,37.86157806]
[1772707166042,0.72952022,92.485,92.445,0.67946734]
[1772707166647,0.72952022,92.479,92.438,10.81794801]
[1772707167141,0.72952022,92.479,92.438,11.49741535]
[1772707167530,0.87168179,92.479,92.439,0.67946734]
[1772707168258,8.6615241,92.47,92.428,0.7155866]
[1772707168446,0.67283983,92.469,92.429,0.7155866]
[1772707169341,0.67283983,92.459,92.423,10.81976319]
[1772707169547,0.67283983,92.449,92.423,10.81976319]
[1772707170334,0.67283983,92.461,92.424,0.7155866]
[1772707170631,10.81455206,92.468,92.424,0.7155866]
[1772707171544,0.67283983,92.467,92.424,0.7155866]
[1772707172945,10.81478597,92.466,92.426,0.7155866]
[1772707173151,0.67283983,92.465,92.426,0.7155866]
[1772707174943,0.67283983,92.459,92.427,10.81934932]
[1772707175330,0.67283983,92.459,92.427,11.53493592]
[1772707175534,0.67283983,92.468,92.428,0.7155866]
[1772707176754,0.67283983,92.459,92.423,10.8198112]
[1772707176944,0.67283983,92.457,92.423,10.8198112]
[1772707178062,0.67283983,92.447,92.423,10.8198112]
[1772707178631,0.67283983,92.447,92.414,10.82084984]
[1772707178843,0.67283983,92.439,92.421,5.05990802]
[1772707179955,10.81806183,92.438,92.421,5.05990802]
[1772707180157,37.86321642,92.438,92.421,5.05990802]
[1772707180666,10.81806183,92.438,92.401,0.7345097]
[1772707182042,10.81806183,92.438,92.403,0.7345097]
[1772707182559,8.6615241,92.43,92.397,10.82283523]
[1772707182740,10.81806183,92.438,92.398,0.7345097]
[1772707182942,8.6615241,92.43,92.398,0.7345097]
[1772707183653,10.81806183,92.438,92.398,0.7345097]
[1772707183853,8.6615241,92.43,92.398,0.7345097]
[1772707184461,10.81911521,92.429,92.399,11.55713765]
[1772707184662,10.81911521,92.429,92.4,0.7345097]
[1772707185457,4.04657905,92.42,92.378,0.7345097]
[1772707185654,37.86690324,92.429,92.378,0.7345097]
[1772707186465,4.04657905,92.42,92.38,0.7345097]
[1772707187263,37.86690324,92.429,92.38,0.7345097]
[1772707188163,4.04657905,92.42,92.382,0.7345097]
[1772707189048,4.04657905,92.41,92.374,0.7345097]
[1772707189250,4.04657905,92.41,92.376,0.7345097]
[1772707191671,10.82145678,92.409,92.376,0.7345097]
[1772707191966,10.82145678,92.409,92.378,0.7345097]
[1772707192957,10.82145678,92.409,92.37,0.7345097]
[1772707193302,10.82040295,92.418,92.37,0.7345097]
[1772707193571,37.87141032,92.418,92.37,0.7345097]
[1772707193868,27.05100737,92.418,92.361,0.7345097]
[1772707194255,4.04657905,92.41,92.361,0.7345097]
[1772707195171,27.05100737,92.418,92.361,0.7345097]
[1772707195367,4.04657905,92.41,92.361,0.7345097]
[1772707196171,4.04657905,92.42,92.363,0.7345097]
[1772707196469,10.81934932,92.427,92.366,0.7345097]
[1772707196675,4.04657905,92.41,92.366,0.7345097]
[1772707197269,0.28432314,92.419,92.366,0.7345097]
[1772707197471,10.81934932,92.427,92.366,0.7345097]
[1772707197874,10.8182959,92.436,92.367,0.7345097]
[1772707198257,0.67088862,92.435,92.369,0.28432314]
[1772707200170,10.81852997,92.434,92.373,0.71613395]
[1772707200377,0.67088862,92.433,92.373,0.71613395]
[1772707200567,0.67088862,92.429,92.373,0.71613395]
[1772707200754,0.67088862,92.419,92.373,0.71613395]
[1772707201658,0.67088862,92.419,92.371,3.69383402]
[1772707201659,0.67088862,92.399,92.363,10.82684624]
[1772707201858,0.67088862,92.399,92.364,0.71613395]
[1772707202465,10.82274508,92.398,92.365,10.82661181]
[1772707202680,0.67088862,92.397,92.366,0.71613395]
[1772707203057,0.67088862,92.397,92.323,43.32584744]
[1772707203058,0.67088862,92.379,92.337,10.82986089]
[1772707203281,4.04657905,92.36,92.334,0.71613395]
[1772707203477,81.1705881,92.398,92.332,1.02467695]
[1772707203478,4.04657905,92.37,92.332,1.02467695]
[1772707203788,0.28432314,92.369,92.342,0.73969965]
[1772707203962,81.1705881,92.398,92.332,1e-08]
[1772707203963,0.46859879,92.348,92.332,1e-08]
[1772707204159,0.26859878,92.338,92.301,10.83405187]
[1772707204485,8.69066232,92.33,92.301,10.83405187]
[1772707204776,0.28432314,92.339,92.271,10.83764129]
[1772707204777,37.90791624,92.329,92.271,10.83764129]
[1772707204981,38.17921447,92.329,92.274,3.69383402]
[1772707205179,8.69066232,92.32,92.271,10.83764129]
[1772707205381,8.69066232,92.32,92.271,37.93174452]
[1772707205682,0.55829755,92.319,92.271,37.93174452]
[1772707205899,0.27397441,92.318,92.272,0.71613395]
[1772707206081,0.28432314,92.299,92.262,0.71613395]
[1772707206388,0.28432314,92.299,92.198,43.38458668]
[1772707206389,0.28432314,92.279,92.187,43.38962789]
[1772707206593,10.83905093,92.259,92.22,0.75007336]
[1772707207070,43.34086302,92.292,92.219,10.84375237]
[1772707207071,0.28432314,92.289,92.223,0.75007336]
[1772707207379,8.69066232,92.28,92.223,0.75007336]
[1772707207581,8.69066232,92.29,92.223,0.75007336]
[1772707208583,37.92434633,92.289,92.224,37.95107563]
[1772707208780,37.92434633,92.289,92.225,0.75007336]
[1772707209282,10.83552752,92.289,92.226,0.75007336]
[1772707209680,8.69066232,92.31,92.229,0.75007336]
[1772707209861,8.69066232,92.31,92.23,0.89223493]
[1772707210065,8.69066232,92.31,92.231,0.75007336]
[1772707210268,8.69066232,92.32,92.233,0.75007336]
[1772707210465,18.64077531,92.323,92.235,0.75007336]
[1772707210681,18.64077531,92.323,92.245,0.89223493]
[1772707210884,10.82848758,92.349,92.256,0.75007336]
[1772707211085,8.69066232,92.36,92.264,0.75007336]
[1772707211086,10.82776869,92.356,92.264,0.75007336]
[1772707211285,10.82776869,92.356,92.267,0.75007336]
[1772707211492,10.82614297,92.369,92.274,0.75007336]
[1772707211692,10.82614297,92.369,92.277,0.75007336]
[1772707211879,10.82614297,92.369,92.28,0.75007336]
[1772707212187,8.69066232,92.37,92.33,0.75007336]
[1772707212486,0.28432314,92.369,92.33,0.75007336]
[1772707212788,27.06301352,92.377,92.332,0.75007336]
[1772707213169,8.69066232,92.37,92.332,0.75007336]
[1772707213366,27.06301352,92.377,92.332,0.75007336]
[1772707213795,8.69066232,92.37,92.332,0.75007336]
[1772707214176,27.06301352,92.377,92.332,0.75007336]
[1772707214677,27.06301352,92.377,92.334,0.75007336]
[1772707215377,27.08862974,92.377,92.334,0.75007336]
[1772707215593,0.02561622,92.359,92.31,0.75007336]
[1772707215886,8.69066232,92.35,92.311,0.75007336]
[1772707216690,0.02815626,92.35,92.311,0.75007336]
[1772707216984,8.69066232,92.34,92.311,0.75007336]
[1772707217291,8.69066232,92.34,92.31,10.8330625]
[1772707217479,8.69066232,92.34,92.303,10.83377292]
[1772707217688,0.03066112,92.339,92.303,10.83377292]
[1772707217884,0.03066112,92.329,92.286,0.75007336]
[1772707218082,8.69066232,92.31,92.279,10.8366879]
[1772707218769,8.69066232,92.31,92.276,0.75007336]
[1772707218770,10.83317986,92.309,92.276,0.75007336]
[1772707218970,8.69066232,92.3,92.224,0.75007336]
[1772707219200,10.86877796,92.309,92.224,0.75007336]
[1772707219201,8.69066232,92.28,92.224,0.75007336]
[1772707219372,8.69066232,92.27,92.224,0.75007336]
[1772707219971,81.24884896,92.309,92.224,0.75007336]
[1772707219972,0.03803297,92.269,92.224,0.75007336]
[1772707220192,8.69066232,92.27,92.224,0.75007336]
[1772707220575,0.28432314,92.289,92.224,0.75007336]
[1772707220770,0.28432314,92.289,92.208,86.75944864]
[1772707220771,10.83552752,92.289,92.227,0.89223493]
[1772707221370,0.28432314,92.288,92.227,0.75007336]
[1772707221591,8.69066232,92.28,92.227,0.75007336]
[1772707222096,8.69066232,92.27,92.227,0.75007336]
[1772707222279,8.69066232,92.28,92.227,0.75007336]
[1772707222478,8.70065134,92.28,92.227,0.75007336]
[1772707222683,27.08542903,92.301,92.229,0.75007336]
[1772707222893,8.70065134,92.29,92.23,0.28432314]
[1772707223202,8.70065134,92.29,92.231,0.75007336]
[1772707223368,8.70065134,92.28,92.231,0.75007336]
[1772707223571,0.04749389,92.279,92.231,0.75007336]
[1772707223796,8.70065134,92.27,92.231,0.75007336]
[1772707223995,0.04749389,92.3,92.231,0.75007336]
[1772707224308,8.74814523,92.3,92.232,0.75007336]
[1772707224477,8.70065134,92.3,92.232,0.75007336]
[1772707224683,8.70065134,92.29,92.232,0.75007336]
[1772707225178,8.70065134,92.28,92.234,0.75007336]
[1772707225379,0.04978924,92.289,92.234,0.75007336]
[1772707226593,8.70065134,92.29,92.234,0.75007336]
[1772707227183,10.83552752,92.289,92.236,0.75007336]
[1772707227502,0.05430708,92.3,92.236,0.28432314]
[1772707227710,10.88994055,92.307,92.239,0.75007336]
[1772707227876,8.70065134,92.3,92.241,0.75007336]
[1772707228508,10.83341458,92.307,92.241,0.75007336]
[1772707228674,0.06089161,92.327,92.243,0.89223493]
[1772707228996,35.77772174,92.33,92.246,1.0343965]
[1772707229202,10.83151646,92.324,92.252,3.69383402]
[1772707229378,10.83151646,92.324,92.254,1.0343965]
[1772707229580,10.83151646,92.324,92.256,0.75007336]
[1772707229788,10.83151646,92.324,92.256,1.0343965]
[1772707229988,10.83151646,92.324,92.258,0.89223493]
[1772707230191,8.70065134,92.33,92.26,0.89223493]
[1772707230192,10.83083144,92.33,92.26,0.89223493]
[1772707230683,19.53148278,92.33,92.26,0.89223493]